[Event "Sabato rapido!"]
[Site "Chess.com"]
[Date "2020.06.13"]
[Round "2"]
[White "mr6701"]
[Black "malberici"]
[Result "1-0"]
[WhiteElo "1844"]
[BlackElo "1364"]
[TimeControl "720+3"]
[EndTime "6:52:23 PDT"]
[Termination "mr6701 ha vinto per abbandono"]

1. e4 {[%clk 0:11:53.8]} 1... Nf6 {[%clk 0:11:57.2]} 2. e5 {[%clk 0:11:55.2]}
2... Nd5 {[%clk 0:11:58.9]} 3. d4 {[%clk 0:11:57.6]} 3... d6 {[%clk 0:12:00]} 4.
Nf3 {[%clk 0:12:00]} 4... Bg4 {[%clk 0:11:55.4]} 5. Be2 {[%clk 0:12:01.9]} 5...
e6 {[%clk 0:11:57.1]} 6. O-O {[%clk 0:12:03.5]} 6... c6 {[%clk 0:11:58.8]} 7. b3
{[%clk 0:12:04.3]} 7... dxe5 {[%clk 0:11:55.1]} 8. dxe5 {[%clk 0:12:03.8]} 8...
Nd7 {[%clk 0:11:56]} 9. c4 {[%clk 0:12:02.7]} 9... N5b6 {[%clk 0:11:52]} 10. Bb2
{[%clk 0:12:03.9]} 10... Be7 {[%clk 0:11:47.8]} 11. Qc2 {[%clk 0:11:51.6]} 11...
O-O {[%clk 0:11:33.9]} 12. Rd1 {[%clk 0:11:50.9]} 12... Qc7 {[%clk 0:11:23.4]}
13. Qe4 {[%clk 0:11:34.1]} 13... Bf5 {[%clk 0:11:20.5]} 14. Qf4 {[%clk
0:11:34.8]} 14... Rad8 {[%clk 0:11:02.6]} 15. Nc3 {[%clk 0:11:36]} 15... f6
{[%clk 0:11:02.9]} 16. Qg3 {[%clk 0:11:15.5]} 16... Nxe5 {[%clk 0:10:39.3]} 17.
Nxe5 {[%clk 0:11:14.8]} 17... Qxe5 {[%clk 0:10:12.3]} 18. Qxe5 {[%clk
0:11:13.7]} 18... Rxd1+ {[%clk 0:10:09.5]} 19. Rxd1 {[%clk 0:11:11.7]} 19...
fxe5 {[%clk 0:10:11.2]} 20. Bf3 {[%clk 0:11:07.4]} 20... Bc5 {[%clk 0:10:03.1]}
21. Ne4 {[%clk 0:10:58.8]} 21... Bxe4 {[%clk 0:09:58.1]} 22. Bxe4 {[%clk
0:10:58.9]} 22... Bxf2+ {[%clk 0:09:56.5]} 23. Kh1 {[%clk 0:10:59.6]} 23... Bd4
{[%clk 0:09:56.7]} 24. Ba3 {[%clk 0:10:58]} 24... Rf4 {[%clk 0:09:50]} 25. Bb1
{[%clk 0:10:30.7]} 25... Nd7 {[%clk 0:09:37.7]} 26. Bc1 {[%clk 0:10:03]} 26...
Rf2 {[%clk 0:09:20.5]} 27. h3 {[%clk 0:10:02.5]} 27... Nf6 {[%clk 0:09:08.6]}
28. a4 {[%clk 0:09:35.9]} 28... c5 {[%clk 0:09:06.9]} 29. Kh2 {[%clk 0:09:27.5]}
29... e4 {[%clk 0:09:04.6]} 30. Re1 {[%clk 0:09:01.2]} 30... Bc3 {[%clk
0:08:19.3]} 31. Re3 {[%clk 0:08:08.5]} 31... Be5+ {[%clk 0:08:08.1]} 32. Kg1
{[%clk 0:08:07]} 32... Rf4 {[%clk 0:07:15.7]} 33. g3 {[%clk 0:07:29.6]} 33...
Rf3 {[%clk 0:07:08]} 34. Rxf3 {[%clk 0:07:30.7]} 34... exf3 {[%clk 0:07:09]} 35.
Kf2 {[%clk 0:07:33.2]} 35... Bd4+ {[%clk 0:06:44.7]} 36. Kxf3 {[%clk 0:07:34.2]}
36... e5 {[%clk 0:06:46.5]} 37. g4 {[%clk 0:07:20.2]} 37... h6 {[%clk 0:06:45]}
38. Bd2 {[%clk 0:07:08]} 38... b6 {[%clk 0:06:42.1]} 39. a5 {[%clk 0:07:03.8]}
39... Nd7 {[%clk 0:06:26.3]} 40. Bf5 {[%clk 0:07:00.2]} 40... Nb8 {[%clk
0:06:18.6]} 41. Ke4 {[%clk 0:06:34.8]} 41... Na6 {[%clk 0:06:06.1]} 42. g5
{[%clk 0:06:15.9]} 42... hxg5 {[%clk 0:05:56.9]} 43. Bxg5 {[%clk 0:06:17.7]}
43... Bc3 {[%clk 0:05:48.5]} 44. axb6 {[%clk 0:06:17.5]} 44... axb6 {[%clk
0:05:49]} 45. Bd8 {[%clk 0:06:19.7]} 45... Ba5 {[%clk 0:05:49.1]} 46. Kxe5
{[%clk 0:06:21.1]} 46... Nb4 {[%clk 0:05:48.7]} 47. Kd6 {[%clk 0:06:11]} 47...
Na2 {[%clk 0:05:40.8]} 48. Kc6 {[%clk 0:05:19]} 48... Nc1 {[%clk 0:05:34.2]} 49.
Bc2 {[%clk 0:05:18.8]} 49... Ne2 {[%clk 0:05:24.7]} 50. Kb7 {[%clk 0:04:57.4]}
50... Nd4 {[%clk 0:05:01.8]} 51. Bd1 {[%clk 0:04:58.6]} 51... Nf5 {[%clk
0:04:50.2]} 52. Bxb6 {[%clk 0:04:55.9]} 52... Nd6+ {[%clk 0:04:31.3]} 53. Ka6
{[%clk 0:04:51.9]} 53... Bb4 {[%clk 0:04:22.8]} 54. Bc7 {[%clk 0:04:33.8]} 54...
Ne4 {[%clk 0:04:14.8]} 55. Bf4 {[%clk 0:04:01]} 55... Nf2 {[%clk 0:04:10]} 56.
Bg4 {[%clk 0:04:02]} 56... Nd3 {[%clk 0:04:08.1]} 57. Be3 {[%clk 0:03:53.3]}
57... Bc3 {[%clk 0:03:59.2]} 58. Kb5 {[%clk 0:03:46.8]} 58... Bd4 {[%clk
0:03:50.9]} 59. Bxd4 {[%clk 0:03:44.6]} 59... cxd4 {[%clk 0:03:52.3]} 60. c5
{[%clk 0:03:44.6]} 60... Nf2 {[%clk 0:03:50.1]} 61. Kc4 {[%clk 0:03:38.5]} 61...
d3 {[%clk 0:03:50.2]} 62. Kc3 {[%clk 0:03:17.3]} 62... d2 {[%clk 0:03:46.8]} 63.
Kxd2 {[%clk 0:03:13.2]} 63... Ne4+ {[%clk 0:03:47.1]} 64. Kd3 {[%clk 0:03:15.4]}
64... Nxc5+ {[%clk 0:03:48.5]} 65. Kc4 {[%clk 0:03:17.9]} 65... Ne4 {[%clk
0:03:44.3]} 66. b4 {[%clk 0:03:17.5]} 66... Kf7 {[%clk 0:03:43.5]} 67. b5 {[%clk
0:03:10.7]} 67... Kf6 {[%clk 0:03:38.9]} 68. b6 {[%clk 0:03:07.5]} 68... Kg5
{[%clk 0:03:31]} 69. Kd5 {[%clk 0:03:05.2]} 69... Nf6+ {[%clk 0:03:30.1]} 70.
Kc6 {[%clk 0:02:50.8]} 70... Nxg4 {[%clk 0:03:23.7]} 71. hxg4 {[%clk 0:02:52.7]}
71... Kxg4 {[%clk 0:03:25.7]} 72. b7 {[%clk 0:02:55.6]} 72... g5 {[%clk
0:03:26.7]} 73. b8=Q {[%clk 0:02:57.2]} 73... Kf3 {[%clk 0:03:26.5]} 74. Qf8+
{[%clk 0:02:57.7]} 74... Kg3 {[%clk 0:03:27.3]} 75. Qf1 {[%clk 0:02:57.8]} 75...
g4 {[%clk 0:03:28.7]} 76. Qg1+ {[%clk 0:02:59.5]} 76... Kf3 {[%clk 0:03:29.8]}
77. Kd5 {[%clk 0:03:01.6]} 77... g3 {[%clk 0:03:31]} 78. Ke5 {[%clk 0:03:03.6]}
78... g2 {[%clk 0:03:29.3]} 79. Kf5 {[%clk 0:03:05.1]} 79... Kg3 {[%clk
0:03:31]} 80. Ke4 {[%clk 0:03:04.5]} 80... Kh3 {[%clk 0:03:30.6]} 81. Kf3 {[%clk
0:02:59.9]} 1-0

[Event "Sabato rapido!"]
[Site "Chess.com"]
[Date "2020.06.13"]
[Round "3"]
[White "crippo"]
[Black "lucatarozzi"]
[Result "1-0"]
[WhiteElo "1555"]
[BlackElo "1284"]
[TimeControl "720+3"]
[EndTime "6:57:10 PDT"]
[Termination "crippo ha vinto per scaccomatto"]

1. e4 {[%clk 0:12:02.9]} 1... d6 {[%clk 0:11:58]} 2. d4 {[%clk 0:12:02.5]} 2...
Nf6 {[%clk 0:11:58.3]} 3. Nc3 {[%clk 0:12:04.2]} 3... g6 {[%clk 0:11:59.5]} 4.
Bd3 {[%clk 0:12:06]} 4... Bg7 {[%clk 0:11:59.7]} 5. Nge2 {[%clk 0:12:07.7]} 5...
O-O {[%clk 0:11:57.9]} 6. O-O {[%clk 0:12:10.2]} 6... Nbd7 {[%clk 0:11:55.1]} 7.
Bg5 {[%clk 0:12:11.5]} 7... c5 {[%clk 0:11:54.5]} 8. d5 {[%clk 0:12:12.3]} 8...
Ne5 {[%clk 0:11:52.5]} 9. Ng3 {[%clk 0:12:13.4]} 9... Nxd3 {[%clk 0:11:49.3]}
10. cxd3 {[%clk 0:12:14.3]} 10... Qa5 {[%clk 0:11:38.6]} 11. f4 {[%clk 0:12:08]}
11... Ng4 {[%clk 0:11:35.9]} 12. Qd2 {[%clk 0:12:06.6]} 12... b5 {[%clk
0:11:25.1]} 13. h3 {[%clk 0:12:05.8]} 13... b4 {[%clk 0:11:22.1]} 14. Nce2
{[%clk 0:12:02.9]} 14... Nh6 {[%clk 0:11:15.7]} 15. f5 {[%clk 0:12:00.8]} 15...
Qb6 {[%clk 0:11:15]} 16. Bxh6 {[%clk 0:12:02.2]} 16... c4+ {[%clk 0:11:10.6]}
17. d4 {[%clk 0:12:02.8]} 17... c3 {[%clk 0:11:05.1]} 18. bxc3 {[%clk
0:12:03.8]} 18... bxc3 {[%clk 0:11:07.1]} 19. Qxc3 {[%clk 0:12:05.8]} 19... Ba6
{[%clk 0:11:04.2]} 20. Bxg7 {[%clk 0:12:05.5]} 20... Kxg7 {[%clk 0:11:05.6]} 21.
fxg6 {[%clk 0:12:00.1]} 21... fxg6 {[%clk 0:11:07.4]} 22. Kh2 {[%clk 0:12:00.8]}
22... Rxf1 {[%clk 0:11:03.5]} 23. Rxf1 {[%clk 0:12:01.4]} 23... Rc8 {[%clk
0:11:04.7]} 24. Qf3 {[%clk 0:12:01.4]} 24... Bxe2 {[%clk 0:10:57.8]} 25. Nxe2
{[%clk 0:12:01.7]} 25... Qd8 {[%clk 0:10:56.9]} 26. Qf7+ {[%clk 0:12:02.9]}
26... Kh6 {[%clk 0:10:57.5]} 27. Nf4 {[%clk 0:12:04.4]} 27... Rc4 {[%clk
0:10:45.4]} 28. Ne6 {[%clk 0:12:06.2]} 28... Qh8 {[%clk 0:10:34.9]} 29. Qf4+
{[%clk 0:12:05.8]} 29... Kh5 {[%clk 0:10:36.3]} 30. Qg5# {[%clk 0:12:07.7]} 1-0

[Event "Sabato rapido!"]
[Site "Chess.com"]
[Date "2020.06.13"]
[Round "3"]
[White "malberici"]
[Black "APipitone"]
[Result "0-1"]
[WhiteElo "1362"]
[BlackElo "1672"]
[TimeControl "720+3"]
[EndTime "7:07:06 PDT"]
[Termination "APipitone ha vinto per abbandono"]

1. d4 {[%clk 0:12:02.9]} 1... Nf6 {[%clk 0:11:57.8]} 2. c4 {[%clk 0:12:04.6]}
2... c5 {[%clk 0:11:57]} 3. Nc3 {[%clk 0:12:04.7]} 3... cxd4 {[%clk 0:11:51.9]}
4. Qxd4 {[%clk 0:12:06.4]} 4... Nc6 {[%clk 0:11:51.6]} 5. Qd1 {[%clk 0:12:08]}
5... d6 {[%clk 0:11:49.4]} 6. Nf3 {[%clk 0:12:08.5]} 6... e5 {[%clk 0:11:40.1]}
7. g3 {[%clk 0:12:04.3]} 7... Be6 {[%clk 0:11:38.5]} 8. b3 {[%clk 0:12:01.6]}
8... d5 {[%clk 0:11:21.5]} 9. cxd5 {[%clk 0:11:54.8]} 9... Nxd5 {[%clk
0:11:18.7]} 10. Bg2 {[%clk 0:11:54.9]} 10... Nxc3 {[%clk 0:11:14.2]} 11. Qc2
{[%clk 0:11:53]} 11... Bb4 {[%clk 0:10:57.4]} 12. O-O {[%clk 0:11:54.1]} 12...
e4 {[%clk 0:10:37]} 13. Ng5 {[%clk 0:11:28.3]} 13... O-O {[%clk 0:10:03.8]} 14.
Nxe6 {[%clk 0:11:22.6]} 14... fxe6 {[%clk 0:10:02.3]} 15. a3 {[%clk 0:11:20.7]}
15... Ba5 {[%clk 0:09:46]} 16. b4 {[%clk 0:11:19.1]} 16... Qf6 {[%clk
0:09:12.3]} 17. bxa5 {[%clk 0:11:13.2]} 17... Nxe2+ {[%clk 0:09:08.8]} 18. Qxe2
{[%clk 0:11:06.2]} 18... Qxa1 {[%clk 0:09:06.6]} 19. Qxe4 {[%clk 0:11:00.2]}
19... Qf6 {[%clk 0:08:42.1]} 20. Qe2 {[%clk 0:10:31.4]} 20... Nxa5 {[%clk
0:08:29.2]} 21. Bb2 {[%clk 0:10:29]} 21... Qf7 {[%clk 0:07:58.3]} 22. Qe5 {[%clk
0:10:18.8]} 22... Nc6 {[%clk 0:07:51.1]} 23. Qc3 {[%clk 0:10:00.3]} 23... Rac8
{[%clk 0:07:43.3]} 24. Qb3 {[%clk 0:09:51.9]} 24... Rfd8 {[%clk 0:07:15.3]} 25.
Bh3 {[%clk 0:09:37.1]} 25... Re8 {[%clk 0:06:54.1]} 26. Re1 {[%clk 0:09:24.9]}
26... Na5 {[%clk 0:06:22]} 27. Qb5 {[%clk 0:08:55.7]} 27... b6 {[%clk
0:06:11.2]} 28. Qg5 {[%clk 0:08:40.1]} 28... Rc2 {[%clk 0:05:11.2]} 29. Be5
{[%clk 0:08:19.7]} 29... Qxf2+ {[%clk 0:04:41.2]} 0-1

[Event "Sabato rapido!"]
[Site "Chess.com"]
[Date "2020.06.13"]
[Round "3"]
[White "fausto2p"]
[Black "sergiodone"]
[Result "0-1"]
[WhiteElo "1242"]
[BlackElo "1523"]
[TimeControl "720+3"]
[EndTime "7:13:06 PDT"]
[Termination "sergiodone ha vinto per abbandono"]

1. d4 {[%clk 0:12:02.9]} 1... Nf6 {[%clk 0:11:58.1]} 2. c4 {[%clk 0:12:02.6]}
2... c5 {[%clk 0:11:58.8]} 3. d5 {[%clk 0:11:57.2]} 3... b5 {[%clk 0:11:59.7]}
4. cxb5 {[%clk 0:11:55.7]} 4... a6 {[%clk 0:12:00.9]} 5. Nc3 {[%clk 0:11:26.9]}
5... axb5 {[%clk 0:11:56.5]} 6. Be3 {[%clk 0:11:07.7]} 6... d6 {[%clk
0:11:47.3]} 7. Bd2 {[%clk 0:10:27.8]} 7... b4 {[%clk 0:11:48.6]} 8. Nb1 {[%clk
0:09:55.6]} 8... Nbd7 {[%clk 0:11:49.1]} 9. Nf3 {[%clk 0:09:54.2]} 9... g6
{[%clk 0:11:50.8]} 10. e3 {[%clk 0:09:47.9]} 10... Bg7 {[%clk 0:11:52.1]} 11.
Bd3 {[%clk 0:09:31.2]} 11... O-O {[%clk 0:11:52.7]} 12. a3 {[%clk 0:09:09.2]}
12... bxa3 {[%clk 0:11:52.3]} 13. Rxa3 {[%clk 0:09:08.6]} 13... Rxa3 {[%clk
0:11:52.6]} 14. bxa3 {[%clk 0:09:09.1]} 14... Qb6 {[%clk 0:11:51.3]} 15. O-O
{[%clk 0:08:55.6]} 15... Ba6 {[%clk 0:11:51.8]} 16. Bc3 {[%clk 0:08:04.4]} 16...
Ra8 {[%clk 0:11:39]} 17. Qe2 {[%clk 0:07:42]} 17... Bxd3 {[%clk 0:11:39.5]} 18.
Qxd3 {[%clk 0:07:41.5]} 18... Qb7 {[%clk 0:11:40.9]} 19. e4 {[%clk 0:07:30.5]}
19... h6 {[%clk 0:11:31.6]} 20. Nfd2 {[%clk 0:07:14.5]} 20... h5 {[%clk
0:10:08.4]} 21. h3 {[%clk 0:07:08.2]} 21... Nb6 {[%clk 0:09:41.3]} 22. Nc4
{[%clk 0:06:44.3]} 22... Qa6 {[%clk 0:09:29.6]} 23. Nbd2 {[%clk 0:06:02.4]}
23... Nxc4 {[%clk 0:09:23.7]} 24. Nxc4 {[%clk 0:06:02]} 24... Rb8 {[%clk
0:08:41.4]} 25. f3 {[%clk 0:04:02.3]} 25... Rb3 {[%clk 0:08:41]} 26. Rd1 {[%clk
0:03:32.8]} 26... Nd7 {[%clk 0:08:19.9]} 27. e5 {[%clk 0:02:22.9]} 27... dxe5
{[%clk 0:07:29.3]} 28. Nxe5 {[%clk 0:02:23.7]} 28... Qxd3 {[%clk 0:07:13.3]} 29.
Rxd3 {[%clk 0:01:37.8]} 29... Bxe5 {[%clk 0:07:13.3]} 30. a4 {[%clk 0:01:02.4]}
30... Rxc3 {[%clk 0:07:12.8]} 31. Rd1 {[%clk 0:00:56.1]} 31... Bd6 {[%clk
0:07:10.5]} 32. a5 {[%clk 0:00:57.1]} 32... Ra3 {[%clk 0:07:12]} 33. g4 {[%clk
0:00:22.2]} 33... hxg4 {[%clk 0:07:04.1]} 34. hxg4 {[%clk 0:00:23.3]} 34... Rxa5
{[%clk 0:07:05.7]} 0-1

[Event "Sabato rapido!"]
[Site "Chess.com"]
[Date "2020.06.13"]
[Round "3"]
[White "Mrtre7"]
[Black "mr6701"]
[Result "0-1"]
[WhiteElo "1470"]
[BlackElo "1848"]
[TimeControl "720+3"]
[EndTime "7:13:42 PDT"]
[Termination "mr6701 ha vinto per abbandono"]

1. d4 {[%clk 0:12:02.9]} 1... d5 {[%clk 0:12:02.1]} 2. c4 {[%clk 0:12:04.2]}
2... e6 {[%clk 0:12:04.3]} 3. Nc3 {[%clk 0:12:06.1]} 3... Nf6 {[%clk 0:12:06.1]}
4. Bg5 {[%clk 0:12:07.3]} 4... Be7 {[%clk 0:12:08.1]} 5. e3 {[%clk 0:12:05.9]}
5... h6 {[%clk 0:12:09.3]} 6. Bh4 {[%clk 0:12:06]} 6... O-O {[%clk 0:12:11.2]}
7. cxd5 {[%clk 0:12:04.1]} 7... exd5 {[%clk 0:12:13.3]} 8. Bd3 {[%clk
0:11:55.3]} 8... c5 {[%clk 0:12:08.9]} 9. dxc5 {[%clk 0:11:56.7]} 9... Bxc5
{[%clk 0:12:10.3]} 10. Bxf6 {[%clk 0:11:54.2]} 10... Qxf6 {[%clk 0:12:09.1]} 11.
Qc2 {[%clk 0:11:20.2]} 11... Qg5 {[%clk 0:11:57.3]} 12. O-O-O {[%clk 0:10:19]}
12... Be6 {[%clk 0:11:47.2]} 13. Nxd5 {[%clk 0:09:57.5]} 13... Na6 {[%clk
0:11:08.9]} 14. Nf3 {[%clk 0:07:38.1]} 14... Qxg2 {[%clk 0:10:48.3]} 15. Be4
{[%clk 0:06:54.3]} 15... Bxd5 {[%clk 0:10:29.3]} 16. Bxd5 {[%clk 0:06:49.4]}
16... Bxe3+ {[%clk 0:10:30.5]} 17. Kb1 {[%clk 0:06:39.6]} 17... Nb4 {[%clk
0:10:14.9]} 18. Qe4 {[%clk 0:06:05.7]} 18... Nxd5 {[%clk 0:10:05.6]} 19. fxe3
{[%clk 0:05:34.5]} 19... Nf6 {[%clk 0:09:56.8]} 20. Qf4 {[%clk 0:05:15.4]} 20...
Qg6+ {[%clk 0:09:37.4]} 21. Ka1 {[%clk 0:05:03.4]} 21... Qe4 {[%clk 0:09:29.9]}
22. Qg3 {[%clk 0:04:50.9]} 22... Rad8 {[%clk 0:09:12.8]} 23. Rdg1 {[%clk
0:04:47.1]} 23... g6 {[%clk 0:09:04.9]} 24. h4 {[%clk 0:04:13]} 24... Nh5 {[%clk
0:08:42.9]} 25. Qf2 {[%clk 0:03:19.5]} 25... Rfe8 {[%clk 0:08:22.6]} 26. Re1
{[%clk 0:01:59.8]} 26... Rd3 {[%clk 0:08:11]} 27. Rhf1 {[%clk 0:01:51.1]} 27...
Rxe3 {[%clk 0:08:02.9]} 28. Rxe3 {[%clk 0:01:52.5]} 28... Qxe3 {[%clk
0:08:05.1]} 29. Qc2 {[%clk 0:01:43.7]} 29... Qe2 {[%clk 0:07:46.4]} 30. Qc1
{[%clk 0:01:05.7]} 30... Qe3 {[%clk 0:07:43.5]} 31. Qd1 {[%clk 0:01:05.9]} 31...
Qe2 {[%clk 0:07:29.3]} 32. Qc1 {[%clk 0:01:02.6]} 32... Rd8 {[%clk 0:07:12.2]}
33. Ng1 {[%clk 0:00:53.6]} 33... Qd2 {[%clk 0:07:01.6]} 34. Qb1 {[%clk
0:00:32.9]} 34... Ng3 {[%clk 0:06:56.7]} 35. Nf3 {[%clk 0:00:32.8]} 35... Qd3
{[%clk 0:06:44.4]} 36. Ne5 {[%clk 0:00:32.3]} 36... Qxf1 {[%clk 0:06:40.9]} 37.
Qxf1 {[%clk 0:00:30.2]} 37... Nxf1 {[%clk 0:06:42.3]} 0-1

[Event "Sabato rapido!"]
[Site "Chess.com"]
[Date "2020.06.13"]
[Round "4"]
[White "Mrtre7"]
[Black "crippo"]
[Result "1-0"]
[WhiteElo "1480"]
[BlackElo "1545"]
[TimeControl "720+3"]
[EndTime "7:19:59 PDT"]
[Termination "Mrtre7 ha vinto per ritiro dell'avversario"]

1. d4 {[%clk 0:12:02.9]} 1... d5 {[%clk 0:11:50]} 2. c4 {[%clk 0:12:04.7]} 2...
c6 {[%clk 0:11:51.4]} 3. Nf3 {[%clk 0:12:02.9]} 3... Nf6 {[%clk 0:11:53.3]} 4.
e3 {[%clk 0:12:04.7]} 4... e6 {[%clk 0:11:55.2]} 5. Bd3 {[%clk 0:12:06]} 5...
Ne4 {[%clk 0:11:57.8]} 6. O-O {[%clk 0:11:55.1]} 6... f5 {[%clk 0:11:59.1]} 7.
cxd5 {[%clk 0:11:55.6]} 7... cxd5 {[%clk 0:12:00.3]} 8. Nbd2 {[%clk 0:11:49.2]}
8... Bd6 {[%clk 0:12:01.2]} 9. Ne5 {[%clk 0:11:29.6]} 9... O-O {[%clk
0:11:59.5]} 10. Ndf3 {[%clk 0:11:08.7]} 10... Nc6 {[%clk 0:11:57.7]} 11. Bd2
{[%clk 0:10:50.6]} 11... Bxe5 {[%clk 0:11:56.2]} 12. Nxe5 {[%clk 0:10:35.4]}
12... Nxe5 {[%clk 0:11:57.1]} 13. dxe5 {[%clk 0:10:35.3]} 13... Bd7 {[%clk
0:11:54.7]} 14. Rc1 {[%clk 0:10:27.7]} 14... Bc6 {[%clk 0:11:53.4]} 15. Bb4
{[%clk 0:10:23.2]} 15... Rf7 {[%clk 0:11:53.4]} 16. Bxe4 {[%clk 0:09:13.8]}
16... fxe4 {[%clk 0:11:55]} 17. Qg4 {[%clk 0:09:07.3]} 17... Qe7 {[%clk
0:11:55.2]} 18. Bxe7 {[%clk 0:09:07.3]} 18... Rxf2 {[%clk 0:11:44.6]} 19. Rxf2
{[%clk 0:08:58.8]} 19... Rf8 {[%clk 0:11:44.8]} 20. Qxe6+ {[%clk 0:08:59.1]} 1-0

[Event "Sabato rapido!"]
[Site "Chess.com"]
[Date "2020.06.13"]
[Round "4"]
[White "fausto2p"]
[Black "SanSecondoPR"]
[Result "1-0"]
[WhiteElo "1253"]
[BlackElo "1345"]
[TimeControl "720+3"]
[EndTime "7:28:15 PDT"]
[Termination "fausto2p ha vinto per abbandono"]

1. d4 {[%clk 0:12:02.9]} 1... d5 {[%clk 0:11:49.1]} 2. c4 {[%clk 0:12:04.4]}
2... e5 {[%clk 0:11:48.7]} 3. dxe5 {[%clk 0:12:05.8]} 3... d4 {[%clk 0:11:49.9]}
4. Nf3 {[%clk 0:12:06.1]} 4... Nc6 {[%clk 0:11:50.6]} 5. Nbd2 {[%clk 0:12:06.1]}
5... Bg4 {[%clk 0:11:50.8]} 6. Nb3 {[%clk 0:11:52.9]} 6... Nge7 {[%clk 0:09:19]}
7. Nbxd4 {[%clk 0:11:39.8]} 7... Bxf3 {[%clk 0:09:14.3]} 8. Nxf3 {[%clk
0:11:39.2]} 8... Qxd1+ {[%clk 0:09:14.3]} 9. Kxd1 {[%clk 0:11:37.6]} 9... O-O-O+
{[%clk 0:09:14.9]} 10. Bd2 {[%clk 0:11:25.4]} 10... Ng6 {[%clk 0:09:14.5]} 11.
Kc2 {[%clk 0:11:18.5]} 11... Ngxe5 {[%clk 0:09:12.9]} 12. Nxe5 {[%clk
0:11:16.2]} 12... Nxe5 {[%clk 0:09:12.2]} 13. e3 {[%clk 0:10:52.2]} 13... Be7
{[%clk 0:09:01.2]} 14. Be2 {[%clk 0:10:38.7]} 14... h5 {[%clk 0:08:54.8]} 15.
Rad1 {[%clk 0:10:33.5]} 15... Bf6 {[%clk 0:08:47.3]} 16. h3 {[%clk 0:10:06.4]}
16... Rd7 {[%clk 0:08:30.6]} 17. f4 {[%clk 0:10:01.8]} 17... Nc6 {[%clk
0:08:16.2]} 18. Bc3 {[%clk 0:09:38.1]} 18... Bxc3 {[%clk 0:08:02.7]} 19. Kxc3
{[%clk 0:09:27.8]} 19... Re7 {[%clk 0:08:01.3]} 20. Rd3 {[%clk 0:09:15.4]} 20...
Rhe8 {[%clk 0:07:56.8]} 21. Re1 {[%clk 0:08:53.3]} 21... Rxe3 {[%clk 0:07:31.2]}
22. Rxe3 {[%clk 0:08:45.7]} 22... Rxe3+ {[%clk 0:07:30.1]} 23. Kd2 {[%clk
0:08:45.7]} 23... Re4 {[%clk 0:07:20.5]} 24. Bg4+ {[%clk 0:08:42]} 24... hxg4
{[%clk 0:07:11.9]} 25. Rxe4 {[%clk 0:08:41.7]} 25... f5 {[%clk 0:07:09]} 26. Re5
{[%clk 0:08:40.2]} 26... Nxe5 {[%clk 0:07:07.3]} 27. fxe5 {[%clk 0:08:40.6]}
27... Kd7 {[%clk 0:07:08.2]} 28. Ke3 {[%clk 0:08:41.6]} 28... Ke6 {[%clk
0:07:07.5]} 29. Kf4 {[%clk 0:08:40.3]} 29... g6 {[%clk 0:07:06]} 30. hxg4 {[%clk
0:08:21.9]} 30... fxg4 {[%clk 0:07:01.5]} 31. Kxg4 {[%clk 0:08:23.6]} 31... Kxe5
{[%clk 0:06:58.4]} 32. Kg5 {[%clk 0:08:25.2]} 32... Ke4 {[%clk 0:06:59.6]} 33.
Kxg6 {[%clk 0:08:18]} 33... Kd4 {[%clk 0:06:46.7]} 34. b3 {[%clk 0:08:18.9]}
34... Kc3 {[%clk 0:06:47]} 35. g4 {[%clk 0:08:17.8]} 35... Kb2 {[%clk
0:06:48.2]} 36. Kf6 {[%clk 0:08:08.1]} 36... Kxa2 {[%clk 0:06:47.7]} 37. Ke5
{[%clk 0:08:01.6]} 37... Kxb3 {[%clk 0:06:49.1]} 38. Kd5 {[%clk 0:08:02.8]}
38... a5 {[%clk 0:06:50.5]} 39. g5 {[%clk 0:08:03.9]} 39... a4 {[%clk
0:06:52.4]} 40. g6 {[%clk 0:08:05.5]} 40... a3 {[%clk 0:06:54.3]} 41. g7 {[%clk
0:08:07.1]} 41... a2 {[%clk 0:06:53.9]} 42. g8=Q {[%clk 0:08:06.7]} 42... a1=Q
{[%clk 0:06:54]} 43. Qg3+ {[%clk 0:08:02.5]} 43... Qc3 {[%clk 0:06:52.2]} 44.
Qxc7 {[%clk 0:07:54.1]} 44... Qxc4+ {[%clk 0:06:52.1]} 45. Qxc4+ {[%clk
0:07:52.9]} 1-0